fUST/lending_fUST_20240210
["ID","MTS","AMOUNT","RATE_DAILY","PERIOD"]
[313631330,1707501031707,-188.78991119,0.00023433,2]
[313631331,1707501031716,-154.92253873,0.00025,2]
[313631333,1707501031726,-280.57621177,0.00026,2]
[313631336,1707501031735,-335.67869431,0.00026613,2]
[313631338,1707501031744,-847.68682774,0.00026616,2]
[313631393,1707501040579,-489.55710568,0.00026616,2]
[313631415,1707501040988,-705.39713821,0.00026616,2]
[313631417,1707501041000,-734.74690286,0.00026616,2]
[313631419,1707501041012,-1046.56472775,0.00026616,2]
[313631421,1707501041022,-154.92253873,0.00027396,2]
[313631422,1707501041031,-155.0,0.00027397,2]
[313631424,1707501041040,-652.35441931,0.0002799,3]
[313631425,1707501041057,-3193.08558069,0.0002799,3]
[313631426,1707501041066,-500.0,0.00027999,2]
[313631427,1707501041075,-504.72329953,0.00027999,2]
[313631428,1707501041084,-500.0,0.00027999,2]
[313631429,1707501041093,-500.0,0.00027999,2]
[313631430,1707501041102,-500.0,0.00027999,2]
[313631431,1707501041112,-500.0,0.00027999,2]
[313631432,1707501041121,-502.02270578,0.00027999,2]
[313631433,1707501041130,-346.63826653,0.00027999,2]
[313631434,1707501041139,-500.0,0.00027999,2]
[313631435,1707501041148,-500.0,0.00027999,2]
[313631436,1707501041158,-155.39246349,0.00027999,2]
[313631437,1707501041167,-512.98023196,0.00027999,2]
[313631438,1707501041176,-522.43826179,0.00027999,2]
[313631439,1707501041185,-500.0,0.00027999,2]
[313631440,1707501041195,-500.0,0.00027999,2]
[313631441,1707501041204,-500.0,0.00027999,2]
[313631442,1707501041213,-500.0,0.00027999,2]
[313631443,1707501041222,-500.0,0.00027999,2]
[313631444,1707501041231,-500.0,0.00027999,2]
[313631445,1707501041240,-500.0,0.00027999,2]
[313631446,1707501041249,-500.0,0.00027999,2]
[313631447,1707501041258,-500.0,0.00027999,2]
[313631448,1707501041267,-500.0,0.00027999,2]
[313631449,1707501041277,-500.0,0.00027999,2]
[313631450,1707501041286,-500.0,0.00027999,2]
[313631451,1707501041295,-500.0,0.00027999,2]
[313631452,1707501041304,-535.02188743,0.00027999,2]
[313631453,1707501041313,-500.0,0.00027999,2]
[313631454,1707501041323,-518.98172102,0.00027999,2]
[313631455,1707501041332,-500.0,0.00027999,2]
[313631456,1707501041341,-5911.30263318,0.00027999,2]
[313631464,1707501042770,-212.6780741,0.00027998,2]
[313631465,1707501042780,-873.3493509,0.00027999,2]
[313631489,1707501045794,-258.93794327,0.00027999,2]
[313631598,1707501521030,-454.47444014,0.00023416,2]
[313631599,1707501521053,-212.6780741,0.00023417,2]
[313631600,1707501521077,-167.55699101,0.00023417,2]
[313631601,1707501521100,-185.04050999,0.00023418,2]
[313631602,1707501521124,-322.24998476,0.00023418,2]
[313631643,1707502033111,-154.92253873,0.0002202,4]
[313631644,1707502033135,-154.92253873,0.0002202,2]
[313631645,1707502033158,-154.92253873,0.0002202,2]
[313631646,1707502033181,-212.6780741,0.00022021,2]
[313631647,1707502033205,-3331.65058421,0.00022021,2]
[313631648,1707502033233,-1202.14018038,0.00022022,2]
[313631649,1707502033255,-1746.18903205,0.00022023,2]
[313631650,1707502033276,-2602.58303003,0.00022025,2]
[313631651,1707502033296,-166.666666,0.00022039,2]
[313631652,1707502033317,-5472.19205869,0.00023,2]
[313631669,1707502160181,-154.92253873,0.00021088,4]
[313631670,1707502160203,-212.6780741,0.00022999,2]
[313631671,1707502160225,-154.92253873,0.00022999,2]
[313631672,1707502160249,-4499.31571027,0.00023,2]
[313631673,1707502160278,-1832.17488523,0.00023,2]
[313631674,1707502160302,-2091.43243292,0.00023,2]
[313631675,1707502160326,-300.0,0.00023,2]
[313631676,1707502160348,-380.42979398,0.00023197,2]
[313631677,1707502160370,-636.0039524,0.00023333,2]
[313631678,1707502160392,-150.0,0.000234,2]
[313631679,1707502160412,-8076.15981885,0.00023408,2]
[313631680,1707502160432,-2212.60402565,0.00023418,2]
[313631681,1707502160453,-3954.93,0.00023423,3]
[313631682,1707502160473,-5643.88,0.00023423,3]
[313631683,1707502160494,-4703.23,0.00023423,3]
[313631684,1707502160514,-906.16625216,0.00023431,2]
[313631685,1707502160534,-1744.17940929,0.00023431,2]
[313631686,1707502160555,-1201.66555398,0.00023431,2]
[313631687,1707502160579,-154.99998142,0.00023431,2]
[313631688,1707502160600,-5812.05597138,0.00023431,2]
[313631689,1707502160620,-155.79012117,0.00023431,2]
[313631690,1707502160641,-2197.65249298,0.00023431,2]
[313631691,1707502160660,-1294.37276285,0.00023431,2]
[313631692,1707502160681,-833.66848753,0.00023432,2]
[313631693,1707502160705,-18990.03452913,0.00023433,2]
[313631694,1707502160727,-3987.90725112,0.00023433,2]
[313631695,1707502160750,-36709.30655628,0.00023433,2]
[313631696,1707502160774,-166.666666,0.00023541,2]
[313631697,1707502160795,-636.00395236,0.00023716,2]
[313631698,1707502160814,-651.02501521,0.000239,2]
[313631699,1707502160838,-636.00395236,0.000241,2]
[313631700,1707502160860,-200.0,0.00024149,7]
[313631701,1707502160880,-636.00395236,0.00024483,2]
[313631702,1707502160901,-500.0,0.00024657,2]
[313631703,1707502160922,-850.57,0.00024657,2]
[313631704,1707502160943,-500.0,0.00024657,2]
[313631705,1707502160963,-500.0,0.00024657,2]
[313631706,1707502160986,-13179.8,0.00024657,2]
[313631707,1707502161008,-13022.36,0.00024657,2]
[313631708,1707502161029,-19386.27,0.00024657,2]
[313631709,1707502161056,-500.0,0.00024657,2]
[313631710,1707502161079,-380.0,0.00024658,2]
[313631711,1707502161100,-1961.03902914,0.00024745,2]
[313631712,1707502161122,-1859.71951506,0.00024745,2]
[313631713,1707502161143,-299.34580309,0.00024746,2]
[313631714,1707502161165,-1947.3753187,0.00024746,2]
[313631715,1707502161188,-500.0,0.00024747,2]
[313631716,1707502161211,-500.0,0.00024747,2]
[313631717,1707502161232,-536.45719266,0.00024747,2]
[313631718,1707502161253,-500.0,0.00024747,2]
[313631719,1707502161273,-500.0,0.00024747,2]
[313631720,1707502161295,-500.0,0.00024747,2]
[313631721,1707502161315,-500.0,0.00024747,2]
[313631722,1707502161340,-500.0,0.00024747,2]
[313631723,1707502161360,-580.01003263,0.00024747,2]
[313631724,1707502161382,-500.0,0.00024747,2]
[313631725,1707502161403,-500.0,0.00024747,2]
[313631726,1707502161494,-500.0,0.00024747,2]
[313631727,1707502161515,-500.0,0.00024747,2]
[313631728,1707502161537,-500.0,0.00024747,2]
[313631729,1707502161558,-267.24149168,0.00024747,2]
[313631730,1707502161579,-500.0,0.00024747,2]
[313631731,1707502161598,-611.53640266,0.00024747,2]
[313631732,1707502161618,-500.0,0.00024747,2]
[313631733,1707502161637,-500.0,0.00024747,2]
[313631734,1707502161657,-500.0,0.00024747,2]
[313631735,1707502161677,-500.0,0.00024747,2]
[313631736,1707502161698,-501.55476799,0.00024747,2]
[313631737,1707502161719,-500.0,0.00024747,2]
[313631738,1707502161739,-505.97647141,0.00024747,2]
[313631739,1707502161762,-500.0,0.00024747,2]
[313631740,1707502161782,-500.0,0.00024747,2]
[313631741,1707502161802,-500.0,0.00024747,2]
[313631742,1707502161823,-500.0,0.00024747,2]
[313631743,1707502161844,-300.0,0.00024747,2]
[313631744,1707502161864,-500.0,0.00024747,2]
[313631745,1707502161884,-830.05,0.00024747,2]
[313631746,1707502161904,-500.0,0.00024747,2]
[313631747,1707502161925,-500.0,0.00024747,2]
[313631748,1707502161946,-500.0,0.00024747,2]
[313631749,1707502161967,-500.0,0.00024747,2]
[313631750,1707502161988,-500.0,0.00024747,2]
[313631751,1707502162008,-500.0,0.00024747,2]
[313631752,1707502162028,-500.0,0.00024747,2]
[313631753,1707502162049,-500.0,0.00024747,2]
[313631754,1707502162073,-500.0,0.00024747,2]
[313631755,1707502162097,-403.08977589,0.00024747,2]
[313631756,1707502162119,-500.0,0.00024747,2]
[313631757,1707502162142,-9125.95,0.00024747,2]
[313631758,1707502162165,-465.37902182,0.00024747,2]
[313631759,1707502162195,-1038.95,0.00024747,2]
[313631760,1707502162220,-204.64916024,0.00024747,2]
[313631761,1707502162248,-513.29402914,0.00024747,2]
[313631762,1707502162270,-500.0,0.00024747,2]
[313631763,1707502162290,-500.0,0.00024747,2]
[313631764,1707502162312,-1046.35,0.00024747,2]
[313631765,1707502162334,-500.0,0.00024747,2]
[313631766,1707502162354,-500.0,0.00024747,2]
[313631767,1707502162373,-502.57543074,0.00024747,2]
[313631768,1707502162394,-2109.3,0.00024747,2]
[313631769,1707502162414,-500.0,0.00024747,2]
[313631770,1707502162434,-500.0,0.00024747,2]
[313631771,1707502162455,-500.0,0.00024747,2]
[313631772,1707502162474,-500.0,0.00024747,2]
[313631773,1707502162494,-19124.88822616,0.00024748,2]
[313631774,1707502162515,-500.0,0.00024766,2]
[313631775,1707502162536,-500.0,0.00024766,2]
[313631776,1707502162556,-209.02620281,0.00024766,2]
[313631777,1707502162582,-500.0,0.00024766,2]
[313631778,1707502162604,-500.0,0.00024766,2]
[313631779,1707502162624,-500.0,0.00024766,2]
[313631780,1707502162643,-500.0,0.00024766,2]
[313631781,1707502162665,-500.0,0.00024766,2]
[313631782,1707502162686,-500.0,0.00024766,2]
[313631783,1707502162706,-473.53317799,0.00024766,2]
[313631784,1707502162727,-500.0,0.00024766,2]
[313631785,1707502162815,-500.0,0.00024766,2]
[313631786,1707502162840,-500.0,0.00024766,2]
[313631787,1707502162861,-500.0,0.00024766,2]
[313631788,1707502162883,-500.0,0.00024766,2]
[313631789,1707502162903,-500.0,0.00024766,2]
[313631790,1707502162924,-500.0,0.00024766,2]
[313631791,1707502162946,-500.0,0.00024766,2]
[313631792,1707502162966,-500.0,0.00024766,2]
[313631794,1707502162986,-500.0,0.00024766,2]
[313631796,1707502163006,-500.0,0.00024766,2]
[313631798,1707502163027,-500.0,0.00024766,2]
[313631800,1707502163047,-300.0,0.00024766,2]
[313631801,1707502163066,-500.0,0.00024766,2]
[313631802,1707502163087,-511.39573866,0.00024766,2]
[313631803,1707502163107,-500.0,0.00024766,2]
[313631804,1707502163127,-500.0,0.00024766,2]
[313631805,1707502163148,-500.0,0.00024766,2]
[313631806,1707502163169,-500.0,0.00024766,2]
[313631807,1707502163189,-541.18279343,0.00024766,2]
[313631808,1707502163209,-500.0,0.00024766,2]
[313631809,1707502163231,-500.0,0.00024766,2]
[313631810,1707502163251,-500.0,0.00024766,2]
[313631811,1707502163271,-500.0,0.00024766,2]
[313631812,1707502163292,-500.0,0.00024766,2]
[313631813,1707502163313,-500.0,0.00024766,2]
[313631814,1707502163335,-500.0,0.00024766,2]
[313631815,1707502163357,-500.0,0.00024766,2]
[313631816,1707502163378,-500.0,0.00024766,2]
[313631817,1707502163401,-333.68365465,0.00024766,2]
[313631818,1707502163421,-500.0,0.00024766,2]
[313631819,1707502163442,-500.0,0.00024766,2]
[313631820,1707502163462,-500.0,0.00024766,2]
[313631821,1707502163483,-500.0,0.00024766,2]
[313631822,1707502163503,-500.0,0.00024766,2]
[313631823,1707502163524,-500.0,0.00024766,2]
[313631824,1707502163543,-500.32433007,0.00024766,2]
[313631825,1707502163563,-500.0,0.00024766,2]
[313631826,1707502163585,-500.0,0.00024766,2]
[313631827,1707502163606,-500.0,0.00024766,2]
[313631828,1707502163626,-500.0,0.00024766,2]
[313631829,1707502163650,-500.0,0.00024766,2]
[313631830,1707502163670,-500.0,0.00024766,2]
[313631831,1707502163689,-500.0,0.00024766,2]
[313631832,1707502163710,-405.26866145,0.00024766,2]
[313631833,1707502163730,-500.0,0.00024766,2]
[313631834,1707502163752,-500.0,0.00024766,2]
[313631835,1707502163776,-500.0,0.00024766,2]
[313631836,1707502163799,-888.08715204,0.00024766,2]
[313631837,1707502163826,-500.0,0.00024766,2]
[313631838,1707502163849,-579.69633128,0.00024766,2]
[313631839,1707502163871,-888.08715204,0.00024766,2]
[313631840,1707502163892,-500.0,0.00024766,2]
[313631841,1707502163914,-500.0,0.00024766,2]
[313631842,1707502163937,-888.08715204,0.00024766,2]
[313631843,1707502163957,-596.20405572,0.00024766,2]
[313631844,1707502163979,-888.08715204,0.00024766,2]
[313631845,1707502164001,-888.08715204,0.00024766,2]
[313631846,1707502164102,-500.0,0.00024766,2]
[313631847,1707502164123,-888.08715204,0.00024766,2]
[313631848,1707502164142,-475.16019835,0.00024766,2]
[313631849,1707502164162,-888.08715204,0.00024766,2]
[313631850,1707502164182,-500.0,0.00024766,2]
[313631851,1707502164204,-888.08715204,0.00024766,2]
[313631852,1707502164224,-500.0,0.00024766,2]
[313631853,1707502164245,-888.08715204,0.00024766,2]
[313631854,1707502164268,-888.08715204,0.00024766,2]
[313631855,1707502164288,-500.0,0.00024766,2]
[313631856,1707502164310,-888.08715204,0.00024766,2]
[313631857,1707502164334,-500.0,0.00024766,2]
[313631858,1707502164356,-888.08715204,0.00024766,2]
[313631859,1707502164377,-888.08715204,0.00024766,2]
[313631860,1707502164402,-888.08715204,0.00024766,2]
[313631861,1707502164423,-888.08715204,0.00024766,2]
[313631862,1707502164443,-888.08715204,0.00024766,2]
[313631863,1707502164463,-888.08715204,0.00024766,2]
[313631864,1707502164484,-888.08715204,0.00024766,2]
[313631865,1707502164504,-888.08715204,0.00024766,2]
[313631866,1707502164524,-888.08715204,0.00024766,2]
[313631867,1707502164544,-888.08715204,0.00024766,2]
[313631868,1707502164569,-888.08715204,0.00024766,2]
[313631869,1707502164593,-500.0,0.00024766,2]
[313631870,1707502164614,-888.08715204,0.00024766,2]
[313631871,1707502164635,-888.08715204,0.00024766,2]
[313631872,1707502164655,-888.08715204,0.00024766,2]
[313631873,1707502164676,-888.08715204,0.00024766,2]
[313631874,1707502164698,-888.08715204,0.00024766,2]
[313631875,1707502164720,-888.08715204,0.00024766,2]
[313631876,1707502164740,-888.08715204,0.00024766,2]
[313631877,1707502164762,-249.89451898,0.00024766,2]
[313631878,1707502164936,-638.19263306,0.00024766,2]
[313631879,1707502164957,-888.08715204,0.00024766,2]
[313631880,1707502164977,-888.08715204,0.00024766,2]
[313631881,1707502164996,-500.0,0.00024766,2]
[313631882,1707502165016,-888.08715204,0.00024766,2]
[313631883,1707502165109,-888.08715204,0.00024766,2]
[313631884,1707502165130,-888.08715204,0.00024766,2]
[313631885,1707502165149,-888.08715204,0.00024766,2]
[313631886,1707502165171,-888.08715204,0.00024766,2]
[313631887,1707502165192,-888.08715204,0.00024766,2]
[313631888,1707502165212,-888.08715204,0.00024766,2]
[313631889,1707502165232,-888.08715204,0.00024766,2]
[313631890,1707502165252,-888.08715204,0.00024766,2]
[313631891,1707502165273,-888.08715204,0.00024766,2]
[313631892,1707502165293,-888.08715204,0.00024766,2]
[313631893,1707502165313,-888.08715204,0.00024766,2]
[313631894,1707502165335,-888.08715204,0.00024766,2]
[313631895,1707502165354,-888.08715204,0.00024766,2]
[313631896,1707502165375,-888.08715204,0.00024766,2]
[313631897,1707502165395,-888.08715204,0.00024766,2]
[313631898,1707502165415,-888.08715204,0.00024766,2]
[313631899,1707502165435,-888.08715204,0.00024766,2]
[313631900,1707502165455,-500.0,0.00024766,2]
[313631901,1707502165475,-500.0,0.00024766,2]
[313631902,1707502165495,-888.08715204,0.00024766,2]
[313631903,1707502165517,-888.08715204,0.00024766,2]
[313631904,1707502165538,-888.08715204,0.00024766,2]
[313631905,1707502165559,-888.08715204,0.00024766,2]
[313631906,1707502165581,-888.08715204,0.00024766,2]
[313631907,1707502165601,-888.08715204,0.00024766,2]
[313631908,1707502165622,-500.0,0.00024766,2]
[313631909,1707502165641,-208.87277283,0.00024766,2]
[313631910,1707502165660,-500.0,0.00024766,2]
[313631911,1707502165680,-500.0,0.00024766,2]
[313631912,1707502165699,-500.0,0.00024766,2]
[313631913,1707502165718,-500.0,0.00024766,2]
[313631914,1707502165738,-500.0,0.00024766,2]
[313631915,1707502165758,-500.0,0.00024766,2]
[313631916,1707502165781,-500.0,0.00024766,2]
[313631917,1707502165800,-500.0,0.00024766,2]
[313631918,1707502165822,-650.0,0.00024766,2]
[313631919,1707502165845,-500.0,0.00024766,2]
[313631920,1707502165866,-500.0,0.00024766,2]
[313631921,1707502165889,-3524.00622499,0.00024766,2]
[313631922,1707502165910,-3524.00622499,0.00024766,2]
[313631923,1707502165931,-3524.00622499,0.00024766,2]
[313631924,1707502165952,-3524.00622499,0.00024766,2]
[313631925,1707502165973,-3524.00622499,0.00024766,2]
[313631926,1707502165995,-3524.00622499,0.00024766,2]
[313631927,1707502166016,-3524.00622499,0.00024766,2]
[313631928,1707502166037,-2629.65217234,0.00024766,2]
[313631929,1707502166107,-894.35405265,0.00024766,2]
[313631930,1707502166129,-3524.00622499,0.00024766,2]
[313631931,1707502166150,-3524.00622499,0.00024766,2]
[313631932,1707502166233,-3524.00622499,0.00024766,2]
[313631933,1707502166255,-3524.00622499,0.00024766,2]
[313631934,1707502166275,-500.0,0.00024767,2]
[313631935,1707502166294,-850.57,0.00024767,2]
[313631936,1707502166313,-500.0,0.00024767,2]
[313631937,1707502166334,-500.0,0.00024767,2]
[313631938,1707502166354,-13179.8,0.00024767,2]
[313631939,1707502166374,-13022.36,0.00024767,2]
[313631940,1707502166395,-19386.27,0.00024767,2]
[313631941,1707502166414,-500.0,0.00024767,2]
[313631942,1707502166433,-500.0,0.00024857,2]
[313631943,1707502166452,-331.26263503,0.00024857,2]
[313631944,1707502166471,-514.99567406,0.00024857,2]
[313631946,1707502166490,-500.0,0.00024857,2]
[313631947,1707502166509,-500.0,0.00024857,2]
[313631948,1707502166529,-500.0,0.00024857,2]
[313631949,1707502166548,-500.0,0.00024857,2]
[313631950,1707502166567,-518.37606409,0.00024857,2]
[313631951,1707502166587,-569.15423846,0.00024857,2]
[313631952,1707502166606,-500.0,0.00024857,2]
[313631953,1707502166625,-500.0,0.00024857,2]
[313631954,1707502166644,-500.0,0.00024857,2]
[313631955,1707502166663,-500.0,0.00024857,2]
[313631956,1707502166688,-500.0,0.00024857,2]
[313631957,1707502166707,-500.0,0.00024857,2]
[313631958,1707502166726,-500.0,0.00024857,2]
[313631959,1707502166746,-500.0,0.00024857,2]
[313631960,1707502166767,-500.0,0.00024857,2]
[313631961,1707502166786,-599.45264426,0.00024857,2]
[313631962,1707502166807,-500.0,0.00024857,2]
[313631963,1707502166827,-500.0,0.00024857,2]
[313631964,1707502166848,-500.0,0.00024857,2]
[313631965,1707502166867,-300.0,0.00024857,2]
[313631966,1707502166885,-500.0,0.00024857,2]
[313631967,1707502166905,-830.05,0.00024857,2]
[313631968,1707502166932,-500.0,0.00024857,2]
[313631969,1707502166951,-500.0,0.00024857,2]
[313631970,1707502166969,-500.0,0.00024857,2]
[313631971,1707502166988,-500.0,0.00024857,2]
[313631972,1707502167007,-500.0,0.00024857,2]
[313631973,1707502167027,-500.0,0.00024857,2]
[313631974,1707502167046,-500.0,0.00024857,2]
[313631975,1707502167065,-500.0,0.00024857,2]
[313631976,1707502167086,-500.0,0.00024857,2]
[313631977,1707502167105,-500.0,0.00024857,2]
[313631978,1707502167125,-9125.95,0.00024857,2]
[313631979,1707502167145,-1038.95,0.00024857,2]
[313631980,1707502167164,-520.6036852,0.00024857,2]
[313631981,1707502167182,-500.0,0.00024857,2]
[313631982,1707502167202,-1046.35,0.00024857,2]
[313631983,1707502167279,-399.94022583,0.00024857,2]
[313631984,1707502167299,-500.0,0.00024857,2]
[313631985,1707502167320,-728.05961046,0.00024857,2]
[313631986,1707502167449,-6985.73144229,0.00023431,2]
[313631987,1707502167471,-1381.24038954,0.00024857,2]
[313631988,1707502167491,-500.0,0.00024857,2]
[313631989,1707502167510,-500.0,0.00024857,2]
[313631990,1707502167531,-500.0,0.00024857,2]
[313631991,1707502167550,-500.0,0.00024857,2]
[313631992,1707502167569,-636.00395236,0.00024866,2]
[313631993,1707502167590,-500.0,0.00024876,2]
[313631994,1707502167611,-850.57,0.00024876,2]
[313631995,1707502167631,-500.0,0.00024876,2]
[313631996,1707502167652,-500.0,0.00024876,2]
[313631997,1707502167673,-13179.8,0.00024876,2]
[313631998,1707502167695,-13022.36,0.00024876,2]
[313631999,1707502167719,-19386.27,0.00024876,2]
[313632000,1707502167741,-500.0,0.00024876,2]
[313632001,1707502167767,-628.29556866,0.00024898,3]
[313632002,1707502167787,-151.0,0.00024898,2]
[313632003,1707502167807,-151.0,0.00024898,2]
[313632004,1707502167827,-151.0,0.00024898,2]
[313632005,1707502167849,-18493.82826715,0.00024898,2]
[313632006,1707502167994,-153.760608,0.00024898,2]
[313632007,1707502168014,-214418.20131908,0.00024898,2]
[313632008,1707502168033,-500.0,0.00024966,2]
[313632009,1707502168053,-275.24701902,0.00024966,2]
[313632010,1707502168072,-500.0,0.00024966,2]
[313632011,1707502168093,-500.0,0.00024966,2]
[313632012,1707502168113,-500.0,0.00024966,2]
[313632013,1707502168132,-500.0,0.00024966,2]
[313632014,1707502168152,-500.0,0.00024966,2]
[313632015,1707502168172,-500.0,0.00024966,2]
[313632016,1707502168191,-500.0,0.00024966,2]
[313632017,1707502168212,-290.17876149,0.00024966,2]
[313632018,1707502168233,-500.0,0.00024966,2]
[313632019,1707502168253,-500.0,0.00024966,2]
[313632020,1707502168337,-500.0,0.00024966,2]
[313632021,1707502168358,-500.0,0.00024966,2]
[313632022,1707502168378,-500.0,0.00024966,2]
[313632023,1707502168398,-500.0,0.00024966,2]
[313632024,1707502168418,-500.0,0.00024966,2]
[313632025,1707502168438,-830.05,0.00024966,2]
[313632026,1707502168458,-504.89075612,0.00024966,2]
[313632027,1707502168477,-500.0,0.00024966,2]
[313632028,1707502168497,-500.0,0.00024966,2]
[313632029,1707502168518,-500.0,0.00024966,2]
[313632030,1707502168539,-396.3414006,0.00024966,2]
[313632031,1707502168560,-500.0,0.00024966,2]
[313632032,1707502168581,-500.0,0.00024966,2]
[313632033,1707502168602,-500.0,0.00024966,2]
[313632034,1707502168621,-500.0,0.00024966,2]
[313632035,1707502168643,-9125.95,0.00024966,2]
[313632036,1707502168667,-1038.95,0.00024966,2]
[313632037,1707502168688,-502.81787563,0.00024966,2]
[313632038,1707502168711,-1046.35,0.00024966,2]
[313632039,1707502168731,-500.0,0.00024966,2]
[313632040,1707502168754,-2109.3,0.00024966,2]
[313632041,1707502168774,-502.39045831,0.00024966,2]
[313632042,1707502168795,-500.0,0.00024966,2]
[313632043,1707502168816,-500.0,0.00024966,2]
[313632044,1707502168839,-500.0,0.00024966,2]
[313632045,1707502168861,-238.16557632,0.00024986,2]
[313632046,1707502168882,-850.57,0.00024986,2]
[313632047,1707502168903,-504.38773086,0.00024986,2]
[313632048,1707502168924,-500.0,0.00024986,2]
[313632049,1707502168946,-13179.8,0.00024986,2]
[313632050,1707502168968,-13022.36,0.00024986,2]
[313632051,1707502168990,-19386.27,0.00024986,2]
[313632052,1707502169009,-500.0,0.00024986,2]
[313632053,1707502169028,-198.13983166,0.00024989,2]
[313632054,1707502169047,-500.0,0.00024989,2]
[313632055,1707502169067,-327.64198413,0.00024989,2]
[313632056,1707502169087,-500.0,0.00024989,2]
[313632057,1707502169106,-245.55365273,0.00024989,2]
[313632058,1707502169125,-500.0,0.00024989,2]
[313632059,1707502169144,-500.0,0.00024989,2]
[313632060,1707502169164,-500.0,0.00024989,2]
[313632061,1707502169184,-500.0,0.00024989,2]
[313632062,1707502169204,-500.0,0.00024989,2]
[313632063,1707502169223,-500.0,0.00024989,2]
[313632064,1707502169242,-500.0,0.00024989,2]
[313632065,1707502169262,-500.0,0.00024989,2]
[313632066,1707502169339,-500.0,0.00024989,2]
[313632067,1707502169360,-211.67890382,0.00024989,2]
[313632068,1707502169383,-259.99397204,0.00024989,2]
[313632069,1707502169403,-522.91572915,0.00024989,2]
[313632070,1707502169423,-500.0,0.00024989,2]
[313632071,1707502169442,-500.0,0.00024989,2]
[313632072,1707502169463,-532.91,0.00024989,2]
[313632073,1707502169485,-500.0,0.00024989,2]
[313632074,1707502169508,-500.0,0.00024989,2]
[313632075,1707502169529,-500.0,0.00024989,2]
[313632076,1707502169552,-500.0,0.00024989,2]
[313632077,1707502169574,-500.0,0.00024989,2]
[313632078,1707502169596,-500.0,0.00024989,2]
[313632079,1707502169618,-500.0,0.00024989,2]
[313632080,1707502169641,-500.0,0.00024989,2]
[313632081,1707502169662,-495.07855859,0.00024989,2]
[313632082,1707502169683,-500.0,0.00024989,2]
[313632083,1707502169705,-500.0,0.00024989,2]
[313632084,1707502169727,-500.0,0.00024989,2]
[313632085,1707502169751,-618.24687944,0.00024989,2]
[313632086,1707502169773,-527.14,0.00024989,2]
[313632087,1707502169794,-500.0,0.00024989,2]
[313632088,1707502169815,-500.0,0.00024989,2]
[313632089,1707502169836,-500.0,0.00024989,2]
[313632090,1707502169857,-500.0,0.00024989,2]
[313632091,1707502169878,-533.50644947,0.00024989,2]
[313632092,1707502169899,-500.0,0.00024989,2]
[313632093,1707502169920,-500.0,0.00024989,2]
[313632094,1707502169940,-500.0,0.00024989,2]
[313632095,1707502169962,-500.0,0.00024989,2]
[313632096,1707502169984,-500.0,0.00024989,2]
[313632097,1707502170006,-500.0,0.00024989,2]
[313632098,1707502170029,-500.0,0.00024989,2]
[313632099,1707502170050,-500.0,0.00024989,2]
[313632100,1707502170070,-535.04254233,0.00024989,2]
[313632101,1707502170092,-500.0,0.00024989,2]
[313632102,1707502170112,-500.0,0.00024989,2]
[313632103,1707502170135,-500.0,0.00024989,2]
[313632104,1707502170155,-1115.39,0.00024989,2]
[313632105,1707502170177,-500.0,0.00024989,2]
[313632106,1707502170196,-500.0,0.00024989,2]
[313632107,1707502170217,-500.0,0.00024989,2]
[313632108,1707502170242,-500.0,0.00024989,2]
[313632109,1707502170269,-504.17911254,0.00024989,2]
[313632110,1707502170292,-150.0,0.00024989,2]
[313632111,1707502170371,-506.84774836,0.00024989,2]